bitfinex-derivatives/quotes_BTCF0:USTF0_20241021
["timestamp","ask_amount","ask_price","bid_price","bid_amount"]
[1729521772782,0.074277,67339.0,67338.0,0.45816674]
[1729521774879,0.074277,67339.0,67338.0,0.38589074]
[1729521775189,0.074277,67339.0,67338.0,0.38489074]
[1729521775490,0.074277,67339.0,67338.0,0.45916874]
[1729521775786,0.074277,67339.0,67338.0,0.38389074]
[1729521775979,0.074277,67339.0,67338.0,0.38589074]
[1729521776480,0.074277,67339.0,67338.0,0.38489074]
[1729521777978,0.074277,67339.0,67338.0,0.02409074]
[1729521780990,0.074263,67352.0,67338.0,0.02409074]
[1729521781195,0.074267,67350.0,67349.0,0.074265]
[1729521782997,0.074267,67350.0,67349.0,0.075265]
[1729521784091,0.074262,67353.0,67352.0,0.074259]
[1729521785387,0.074262,67353.0,67352.0,0.3608]
[1729521786091,0.074262,67353.0,67346.0,0.36156]
[1729521786291,0.074278,67338.0,67337.0,0.3608]
[1729521786492,0.074278,67338.0,67337.0,0.38884196]
[1729521787001,0.074278,67338.0,67337.0,0.45847527]
[1729521787387,0.074275,67343.0,67342.0,0.074273]
[1729521788887,0.074268,67349.0,67348.0,0.074264]
[1729521789496,0.074262,67353.0,67352.0,0.074259]
[1729521789888,0.074262,67353.0,67345.0,0.36156]
[1729521790205,0.7216,67346.0,67312.0,0.04432397]
[1729521790499,0.074304,67314.0,67313.0,0.01214263]
[1729521790699,0.3608,67318.0,67307.0,0.02322331]
[1729521790893,0.074299,67319.0,67304.0,0.17096]
[1729521790894,0.074311,67309.0,67308.0,0.00464798]
[1729521791289,0.074311,67309.0,67308.0,0.00011037]
[1729521791687,0.074312,67307.0,67306.0,0.3608]
[1729521791894,0.074312,67307.0,67306.0,0.36544792]
[1729521792094,0.074312,67307.0,67306.0,0.36566866]
[1729521792595,0.074312,67307.0,67306.0,0.36102074]
[1729521793104,0.435112,67307.0,67306.0,0.00022074]
[1729521793307,0.074319,67301.0,67280.0,0.04432397]
[1729521793501,0.0645,67316.0,67281.0,0.00464929]
[1729521793502,0.3608,67290.0,67281.0,0.00464929]
[1729521793805,0.3608,67290.0,67279.0,0.00962601]
[1729521793806,0.074342,67280.0,67279.0,0.00962601]
[1729521793993,0.074342,67280.0,67279.0,0.00222955]
[1729521794200,0.074342,67280.0,67279.0,0.00333407]
[1729521794585,0.3608,67303.0,67279.0,0.01076175]
[1729521794800,0.00546919,68101.0,67292.0,0.074326]
[1729521794801,0.074328,67293.0,67292.0,0.074326]
[1729521794997,0.435128,67293.0,67292.0,0.074326]
[1729521795299,0.435128,67293.0,67292.0,0.00121449]
[1729521795300,0.435127,67293.0,67292.0,0.00121449]
[1729521795500,0.3608,67293.0,67279.0,0.01522955]
[1729521795685,0.435127,67293.0,67292.0,0.00121449]
[1729521796106,0.074336,67285.0,67284.0,0.074336]
[1729521796499,0.074336,67285.0,67284.0,0.07610288]
[1729521796795,0.074333,67288.0,67286.0,0.074335]
[1729521796998,0.074333,67288.0,67284.0,0.00176688]
[1729521796999,0.074333,67288.0,67287.0,0.074334]
[1729521797203,0.074333,67288.0,67287.0,0.00264889]
[1729521797496,0.3608,67293.0,67285.0,0.3608]
[1729521797701,0.3608,67293.0,67289.0,0.074332]
[1729521797889,0.074331,67290.0,67289.0,0.074332]
[1729521798092,0.3608,67301.0,67286.0,0.36624174]
[1729521798297,0.00222988,67304.0,67294.0,0.3608]
[1729521798498,0.00222988,67304.0,67289.0,0.17104]
[1729521798703,0.3608,67302.0,67294.0,0.074325]
[1729521798894,0.074324,67296.0,67295.0,0.00209709]
[1729521799095,0.074329,67292.0,67291.0,0.07433]
[1729521799402,0.074342,67280.0,67272.0,0.3608]
[1729521799603,0.795942,67280.0,67266.0,0.3608]
[1729521799803,0.074356,67267.0,67260.0,0.07]
[1729521800109,0.074357,67266.0,67261.0,0.00066291]
[1729521800297,0.074362,67262.0,67261.0,0.00066291]
[1729521800802,0.074363,67261.0,67259.0,0.074365]
[1729521801002,0.074364,67260.0,67259.0,0.074365]
[1729521801390,0.074364,67260.0,67259.0,0.08507779]
[1729521801605,0.074361,67263.0,67261.0,0.074362]
[1729521801813,0.3608,67271.0,67259.0,0.37151279]
[1729521802016,0.0691,67287.0,67276.0,0.074346]
[1729521802205,0.3608,67284.0,67265.0,0.3608]
[1729521802508,0.074349,67274.0,67273.0,0.074348]
[1729521803102,0.435138,67284.0,67266.0,0.065]
[1729521803295,0.074351,67272.0,67270.0,0.074352]
[1729521803504,0.075345,67277.0,67270.0,0.074352]
[1729521803808,0.074349,67274.0,67271.0,0.00772931]
[1729521804010,0.074349,67274.0,67273.0,0.07435]
[1729521804208,0.075349,67274.0,67273.0,0.08335]
[1729521804602,0.075349,67274.0,67273.0,0.09063738]
[1729521804804,0.074349,67274.0,67273.0,0.08163738]
[1729521807001,0.075349,67274.0,67273.0,0.09063738]
[1729521807401,0.075349,67274.0,67273.0,0.11332243]
[1729521807610,0.001,67274.0,67273.0,0.11332243]
[1729521808111,0.0022299,67291.0,67273.0,0.48493243]
[1729521808413,0.0765599,67291.0,67290.0,0.074331]
[1729521809010,0.0765599,67291.0,67290.0,0.07852592]
[1729521809312,0.0022299,67291.0,67290.0,0.07852592]
[1729521809714,0.0765599,67291.0,67290.0,0.07852592]
[1729521810012,0.0765599,67291.0,67290.0,0.08852592]
[1729521810512,0.0765599,67291.0,67290.0,0.08652592]
[1729521810808,0.0765599,67291.0,67290.0,0.01219492]
[1729521811012,0.0765599,67291.0,67290.0,0.10165159]
[1729521811205,0.0022299,67291.0,67290.0,0.10265159]
[1729521812510,0.0022299,67291.0,67290.0,0.02832059]
[1729521812712,0.0765599,67291.0,67290.0,0.02732059]
[1729521812915,0.0765599,67291.0,67290.0,0.00619492]
[1729521813111,0.4373599,67291.0,67275.0,0.144346]
[1729521813307,0.074353,67270.0,67269.0,0.3608]
[1729521813506,0.3608,67280.0,67264.0,0.074359]
[1729521813507,0.074362,67265.0,67264.0,0.074359]
[1729521813803,0.074364,67260.0,67259.0,0.00223016]
[1729521814115,0.074364,67260.0,67259.0,0.02551041]
[1729521814312,0.074364,67260.0,67259.0,0.00278277]
[1729521814717,0.074364,67260.0,67259.0,0.00055261]
[1729521815014,0.074374,67251.0,67250.0,0.074374]
[1729521815415,0.074374,67251.0,67250.0,0.07470565]
[1729521816417,0.074374,67251.0,67250.0,0.00033165]
[1729521816617,0.07438,67245.0,67244.0,0.02247265]
[1729521816822,0.07438,67245.0,67244.0,0.074382]
[1729521817007,0.3608,67248.0,67244.0,0.00066342]
[1729521817215,0.074374,67251.0,67250.0,0.074375]
[1729521817614,0.3608,67254.0,67242.0,0.3608]
[1729521817929,0.3608,67262.0,67257.0,0.074365]
[1729521817930,0.074366,67258.0,67257.0,0.074365]
[1729521818106,0.3608,67262.0,67261.0,0.074363]
[1729521818308,0.3608,67262.0,67251.0,0.3608]
[1729521818507,0.435162,67262.0,67261.0,0.08408076]
[1729521818704,0.17116,67279.0,67261.0,0.08408076]
[1729521818705,0.3608,67277.0,67264.0,0.074359]
[1729521818908,0.074354,67269.0,67264.0,0.074359]
[1729521819117,0.074356,67267.0,67264.0,0.074359]
[1729521819419,0.074355,67268.0,67264.0,0.07568569]
[1729521819620,0.435146,67277.0,67264.0,0.07568569]
[1729521819811,0.435146,67277.0,67265.0,0.074358]
[1729521819812,0.074358,67266.0,67265.0,0.074358]
[1729521820123,0.074358,67266.0,67265.0,0.07557346]
[1729521820414,0.074357,67266.0,67265.0,0.07557346]
[1729521821007,0.074354,67270.0,67269.0,0.074353]
[1729521821407,0.074354,67270.0,67269.0,0.07512641]
[1729521822120,0.3608,67277.0,67269.0,0.00077341]
[1729521822317,0.3608,67277.0,67276.0,0.074346]
[1729521822519,0.074341,67282.0,67281.0,0.07434]
[1729521823111,0.074341,67282.0,67281.0,0.0054094]
[1729521823609,0.074345,67279.0,67278.0,0.074342]
[1729521823822,0.0022303,67284.0,67281.0,0.075339]
[1729521823823,0.075341,67282.0,67281.0,0.075339]
[1729521824124,0.075341,67282.0,67281.0,0.001]
[1729521824622,0.0022303,67284.0,67280.0,9.925655]
[1729521824825,0.074341,67281.0,67280.0,9.999997]
[1729521825214,0.074341,67281.0,67280.0,10.00032836]
[1729521826027,0.074341,67281.0,67280.0,9.92598636]
[1729521826412,0.074341,67281.0,67280.0,9.91798636]
[1729521826617,0.074341,67281.0,67280.0,9.99232836]
[1729521826918,0.076341,67281.0,67280.0,9.91798636]
[1729521827325,0.522221,67281.0,67280.0,9.91798636]
[1729521827519,1.481021,67281.0,67280.0,8.68761212]
[1729521827720,0.883021,67281.0,67280.0,8.68761212]
[1729521828025,0.883021,67281.0,67280.0,8.39522812]
[1729521829517,0.881021,67281.0,67280.0,8.39622812]
[1729521829720,0.882021,67281.0,67280.0,8.39622812]
[1729521830118,0.436141,67281.0,67280.0,8.39622812]
[1729521831529,0.882021,67281.0,67280.0,8.39622812]
[1729521832940,0.436141,67281.0,67280.0,8.39622812]
[1729521833127,0.436141,67281.0,67280.0,8.40263184]
[1729521834028,0.436141,67281.0,67280.0,8.47697384]
[1729521834222,0.36302983,67295.0,67280.0,8.47697384]
[1729521834424,0.074332,67290.0,67289.0,0.074331]
[1729521834634,0.00222983,67295.0,67288.0,0.3608]
[1729521834821,0.00222983,67295.0,67294.0,0.074326]
[1729521835227,0.8794,67330.0,67295.0,0.3608]
[1729521835428,0.00025,67412.0,67295.0,0.3608]
[1729521835429,0.21,67381.0,67356.0,0.074257]
[1729521835629,0.21,67381.0,67358.0,0.3608]
[1729521835630,0.074239,67374.0,67358.0,0.3608]
[1729521835835,0.3608,67380.0,67358.0,0.3608]
[1729521835836,0.3608,67373.0,67358.0,0.3608]
[1729521836338,0.074246,67367.0,67364.0,0.3608]
[1729521836523,0.61636,67372.0,67341.0,0.074274]
[1729521836524,0.074249,67365.0,67351.0,0.3608]
[1729521837024,0.074249,67365.0,67358.0,0.001]
[1729521837025,0.17104,67364.0,67358.0,0.001]
[1729521837325,0.074249,67365.0,67358.0,0.001]
[1729521837533,0.44536,67364.0,67358.0,0.001]
[1729521837728,0.44536,67364.0,67351.0,0.3608]
[1729521838035,0.5318,67366.0,67351.0,0.3608]
[1729521838920,0.07425,67364.0,67351.0,0.3608]
[1729521839119,0.07425,67364.0,67359.0,0.3608]
[1729521839528,0.44536,67363.0,67359.0,0.3608]
[1729521840025,0.44536,67362.0,67358.0,0.3618]
[1729521840530,0.44536,67361.0,67358.0,0.3608]
[1729521840839,1.12,67359.0,67358.0,0.3608]
[1729521841028,1.194255,67359.0,67358.0,0.3608]
[1729521841335,1.639615,67359.0,67358.0,0.3618]
[1729521841641,1.639615,67359.0,67345.0,0.3608]
[1729521841642,0.074262,67353.0,67345.0,0.3608]
[1729521841823,0.074262,67353.0,67345.0,0.3528]
[1729521842017,1.4808,67359.0,67345.0,0.3528]
[1729521842233,0.074266,67349.0,67345.0,0.3528]
[1729521842634,0.44544,67348.0,67345.0,0.3528]
[1729521843028,0.074256,67358.0,67345.0,0.3528]
[1729521843337,0.074256,67358.0,67356.0,0.3608]
[1729521843539,1.12292,67359.0,67346.0,0.074269]
[1729521843742,0.074257,67357.0,67346.0,0.074269]
[1729521844236,1.29388,67359.0,67346.0,0.074269]
[1729521844435,0.074258,67356.0,67345.0,0.3528]
[1729521844744,0.002,67358.0,67345.0,0.3528]
[1729521844937,0.07426,67354.0,67345.0,0.3528]
[1729521845328,0.07426,67354.0,67353.0,0.3608]
[1729521845947,1.63966,67354.0,67353.0,0.3608]
[1729521847140,1.19426,67354.0,67353.0,0.3608]
[1729521847337,1.64066,67354.0,67353.0,0.001]
[1729521847638,0.074263,67351.0,67350.0,8.39522812]
[1729521847837,0.674263,67351.0,67350.0,8.39522812]
[1729521848038,1.119703,67351.0,67350.0,8.39522812]
[1729521848249,1.639703,67351.0,67350.0,8.39522812]
[1729521848534,2.239703,67351.0,67350.0,8.39522812]
[1729521849528,1.639703,67351.0,67350.0,8.39522812]
[1729521849744,1.194263,67351.0,67350.0,8.39522812]
[1729521849926,1.639703,67351.0,67350.0,8.39522812]
[1729521850124,1.641703,67351.0,67350.0,8.39622812]
[1729521850543,1.639703,67351.0,67350.0,8.39522812]
[1729521850729,1.122,67351.0,67350.0,8.83129312]
[1729521850929,0.490501,67390.0,67365.0,0.074248]
[1729521850930,0.074239,67373.0,67365.0,0.074248]
[1729521851140,0.074239,67373.0,67372.0,0.3608]
[1729521851537,1.12,67373.0,67372.0,0.3608]
[1729521852330,1.12,67373.0,67372.0,0.43504]
[1729521852527,1.12,67373.0,67372.0,0.3608]
[1729521852732,1.12,67373.0,67372.0,0.43504]
[1729521853538,1.121,67373.0,67372.0,0.43604]
[1729521854044,1.12,67373.0,67372.0,0.43504]
[1729521854251,1.121,67373.0,67372.0,0.43604]
[1729521854730,1.12,67373.0,67372.0,0.43604]
[1729521857239,1.1197,67373.0,67372.0,0.43404]
[1729521858444,0.00222678,67391.0,67390.0,7.27552812]
[1729521858643,0.07644578,67391.0,67390.0,7.27552812]
[1729521859831,0.07744578,67391.0,67390.0,7.27652812]
[1729521860147,0.075219,67391.0,67390.0,7.27652812]
[1729521860747,0.075219,67391.0,67390.0,0.001]
[1729521861144,0.001,67391.0,67389.0,0.3608]
[1729521861539,0.07422,67390.0,67389.0,0.3608]
[1729521861734,0.001,67391.0,67389.0,0.3608]
[1729521861946,0.001,67391.0,67390.0,0.07422]
[1729521863234,0.074212,67398.0,67393.0,0.074217]
[1729521863548,0.074212,67398.0,67397.0,0.3608]
[1729521865240,0.074208,67402.0,67397.0,0.3608]
[1729521865437,0.074208,67402.0,67397.0,0.435013]
[1729521865651,0.001,67398.0,67397.0,0.435013]
[1729521866039,0.001,67398.0,67397.0,0.499813]
[1729521866546,0.074197,67411.0,67406.0,0.074202]
[1729521866751,0.074197,67411.0,67410.0,0.7216]
[1729521866941,0.07667236,67412.0,67410.0,0.7216]
[1729521867140,0.074197,67411.0,67410.0,0.7216]
[1729521868947,0.074197,67411.0,67410.0,0.3608]
[1729521868948,0.519237,67411.0,67410.0,0.3608]
[1729521870250,0.519237,67411.0,67396.0,0.00222551]
[1729521870251,1.06814859,67411.0,67396.0,0.00222551]
[1729521870459,0.074213,67397.0,67396.0,0.00222551]
[1729521870844,0.074213,67397.0,67393.0,0.3608]
[1729521870845,0.074216,67394.0,67393.0,0.3608]
[1729521871252,0.519376,67394.0,67393.0,0.3608]
[1729521872751,0.519376,67394.0,67393.0,0.3618]
[1729521874147,0.074216,67394.0,67393.0,0.3618]
[1729521880353,0.074216,67394.0,67393.0,0.285666]
[1729521882651,0.074216,67394.0,67393.0,0.001]
[1729521882857,0.3608,67401.0,67400.0,6.23038573]
[1729521883058,1.480128,67401.0,67400.0,6.08814673]
[1729521883248,0.880128,67401.0,67400.0,5.79118173]
[1729521883448,1.50337031,67401.0,67400.0,5.50682273]
[1729521884049,1.50337031,67401.0,67400.0,5.23658373]
[1729521884258,1.50337031,67401.0,67400.0,4.98151073]
[1729521884560,0.90337031,67401.0,67400.0,4.85363173]
[1729521884948,0.90337031,67401.0,67400.0,4.73799173]
[1729521885148,0.90337031,67401.0,67400.0,4.62287473]
[1729521885351,0.90337031,67401.0,67400.0,4.39510373]
[1729521885552,0.90337031,67401.0,67400.0,4.28361773]
[1729521886261,0.90337031,67401.0,67400.0,3.99682173]
[1729521886462,1.07401031,67401.0,67400.0,3.80298773]
[1729521886956,1.07401031,67401.0,67400.0,3.71970673]
[1729521887162,1.07401031,67401.0,67400.0,3.63148273]
[1729521887362,1.07401031,67401.0,67400.0,3.54546473]
[1729521887557,0.90337031,67401.0,67400.0,3.45852073]
[1729521887757,1.07401031,67401.0,67400.0,3.38137573]
[1729521888063,1.07401031,67401.0,67400.0,3.29791473]
[1729521888357,1.07401031,67401.0,67400.0,3.22253573]
[1729521888766,1.07401031,67401.0,67400.0,3.22153573]
[1729521888966,1.07401031,67401.0,67400.0,3.14489973]
[1729521890564,1.79401031,67401.0,67400.0,3.14489973]
[1729521890757,1.34889031,67401.0,67400.0,3.14489973]
[1729521891260,1.38524949,67401.0,67400.0,3.14489973]
[1729521891568,1.38524934,67401.0,67400.0,3.14489973]
[1729521891753,1.02444934,67401.0,67400.0,3.14489973]
[1729521892158,0.85380934,67401.0,67400.0,3.14489973]
[1729521892358,0.89938375,67401.0,67400.0,3.14489973]
[1729521893263,0.89938375,67401.0,67400.0,3.14389973]
[1729521893563,0.89938375,67401.0,67400.0,3.14489973]
[1729521893963,1.26257031,67401.0,67400.0,3.14489973]
[1729521895064,1.34450939,67401.0,67400.0,2.78033373]
[1729521895259,1.34450939,67401.0,67400.0,2.57296273]
[1729521895466,1.34450939,67401.0,67400.0,2.39007373]
[1729521895657,1.34450939,67401.0,67400.0,2.39107373]
[1729521895970,1.39776861,67401.0,67400.0,2.39107373]
[1729521896465,1.29893221,67401.0,67400.0,2.39107373]
[1729521896659,1.29893221,67401.0,67400.0,2.39007373]
[1729521896866,1.29893221,67401.0,67400.0,2.39107373]
[1729521898571,0.89938958,67401.0,67400.0,2.39107373]
[1729521899363,0.85381221,67401.0,67400.0,2.39107373]
[1729521899773,0.85381221,67401.0,67400.0,2.39007373]
[1729521900067,0.85381221,67401.0,67400.0,2.39107373]
[1729521900371,0.81745031,67401.0,67400.0,2.39107373]
[1729521900870,1.29892904,67401.0,67400.0,2.10107373]
[1729521901263,0.85380904,67401.0,67400.0,2.10107373]
[1729521901465,1.46956904,67401.0,67400.0,2.10107373]
[1729521901665,1.02444904,67401.0,67400.0,2.10107373]
[1729521902562,0.98809031,67401.0,67400.0,2.10107373]
[1729521902771,1.02445112,67401.0,67400.0,2.10107373]
[1729521903067,1.46957112,67401.0,67400.0,2.10107373]
[1729521903469,1.46957112,67401.0,67400.0,2.09307373]
[1729521904571,1.46957342,67401.0,67400.0,2.09307373]
[1729521905674,1.46957342,67401.0,67400.0,2.09207373]
[1729521905971,1.46957342,67401.0,67400.0,2.09307373]
[1729521906569,2.06957342,67401.0,67400.0,2.09307373]
[1729521906873,1.46957342,67401.0,67400.0,2.09307373]
[1729521907073,1.46957342,67401.0,67400.0,0.001]
[1729521907074,0.61572,67401.0,67400.0,0.001]
[1729521907464,0.074224,67387.0,67386.0,0.3608]
[1729521907764,0.074236,67376.0,67370.0,0.3608]
[1729521907978,0.074241,67371.0,67370.0,0.3608]
[1729521908163,0.074241,67371.0,67363.0,0.3608]
[1729521908372,0.074246,67367.0,67366.0,0.44512]
[1729521908875,0.02255253,67376.0,67375.0,0.003]
[1729521909074,0.074236,67376.0,67375.0,1.04812]
[1729521909577,0.074236,67376.0,67375.0,0.44512]
[1729521910268,0.074236,67376.0,67375.0,0.001]
[1729521910472,0.074249,67364.0,67363.0,0.3608]
[1729521910676,0.074249,67364.0,67363.0,0.9608]
[1729521910971,0.074249,67364.0,67363.0,1.40592]
[1729521911677,0.011,67376.0,67375.0,0.001]
[1729521911876,0.085236,67376.0,67375.0,0.44612]
[1729521912180,0.10820838,67376.0,67375.0,1.04612]
[1729521912769,0.09720838,67376.0,67375.0,1.04512]
[1729521912964,0.09720838,67376.0,67375.0,0.44512]
[1729521913481,0.10920838,67376.0,67375.0,0.44612]
[1729521914175,0.10920838,67376.0,67375.0,0.001]
[1729521914575,0.27964838,67376.0,67375.0,0.001]
[1729521914879,0.074239,67373.0,67372.0,0.3608]
[1729521915180,0.074239,67373.0,67372.0,0.9608]
[1729521915379,0.074239,67373.0,67372.0,1.40592]
[1729521916280,0.088239,67373.0,67372.0,1.40592]
[1729521916578,0.088239,67373.0,67372.0,0.80592]
[1729521916971,0.088239,67373.0,67363.0,0.3608]
[1729521916972,0.074249,67364.0,67363.0,0.3608]
[1729521917167,0.11062156,67364.0,67363.0,0.9608]
[1729521917373,0.11062156,67364.0,67363.0,1.40592]
[1729521918376,0.074249,67364.0,67363.0,1.40592]
[1729521919168,0.088249,67364.0,67363.0,1.40592]
[1729521919378,0.088249,67364.0,67363.0,1.39792]
[1729521919579,0.12462377,67364.0,67363.0,0.3528]
[1729521919775,0.05037584,67364.0,67347.0,0.3608]
[1729521920078,0.07426,67354.0,67353.0,0.3608]
[1729521920387,0.074251,67362.0,67361.0,0.44512]
[1729521920583,0.074251,67362.0,67361.0,0.3608]
[1729521920885,0.17044,67368.0,67361.0,1.40592]
[1729521921184,0.17044,67368.0,67361.0,0.9608]
[1729521921185,0.074251,67362.0,67361.0,0.9608]
[1729521921482,0.19304885,67368.0,67367.0,0.44512]
[1729521921695,0.08149543,67394.0,67367.0,0.80592]
[1729521921872,0.074221,67390.0,67380.0,0.80592]
[1729521922075,0.07423,67381.0,67380.0,0.80592]
[1729521922678,0.07423,67381.0,67380.0,1.40592]
[1729521923990,0.17044,67400.0,67380.0,1.40592]
[1729521924180,0.074215,67395.0,67394.0,0.44512]
[1729521924380,0.074215,67395.0,67381.0,0.14283]
[1729521924680,0.074219,67391.0,67381.0,0.6]
[1729521924892,0.38622189,67397.0,67385.0,0.44512]
[1729521924893,0.074223,67388.0,67385.0,0.44512]
[1729521925079,0.074228,67383.0,67380.0,0.3608]
[1729521925385,0.074226,67385.0,67377.0,0.3608]
[1729521925386,0.074234,67378.0,67377.0,0.3608]
[1729521927290,0.09255018,67378.0,67377.0,0.3608]
[1729521927677,0.09255018,67378.0,67366.0,0.3608]
[1729521927989,0.074238,67374.0,67366.0,0.3608]
[1729521928287,0.074246,67367.0,67366.0,0.3608]
[1729521928487,0.11062148,67367.0,67366.0,0.3608]
[1729521928790,0.11062148,67367.0,67366.0,0.44512]
[1729521929082,0.15621768,67367.0,67366.0,0.44512]
[1729521929276,0.11062148,67367.0,67366.0,0.44512]
[1729521931174,0.14284918,67367.0,67366.0,0.44512]
[1729521931588,0.07426,67354.0,67353.0,0.00222712]
[1729521931781,0.07426,67354.0,67345.0,0.3608]
[1729521931782,0.074255,67359.0,67354.0,0.44512]
[1729521931984,0.435059,67355.0,67354.0,0.44512]
[1729521932178,0.51704324,67355.0,67354.0,0.44512]
[1729521932582,0.51705013,67355.0,67354.0,0.44512]
[1729521933083,0.49011198,67355.0,67354.0,0.44512]
[1729521933287,0.41585298,67355.0,67345.0,0.4291]
[1729521933482,0.074269,67346.0,67345.0,1.0291]
[1729521933887,0.074269,67346.0,67345.0,1.47422]
[1729521934801,0.10620317,67346.0,67345.0,1.47422]
[1729521935185,0.10620317,67346.0,67345.0,1.46622]
[1729521937191,0.10620317,67346.0,67345.0,0.79792]
[1729521937385,0.10620317,67346.0,67345.0,0.3528]
[1729521937592,0.10620317,67346.0,67345.0,0.79792]
[1729521937787,0.10620317,67346.0,67345.0,1.39792]
[1729521938391,0.03193417,67346.0,67345.0,1.39792]
[1729521938593,0.014,67346.0,67345.0,1.47219]
[1729521938899,0.3283,67366.0,67345.0,1.39792]
[1729521938900,0.17024,67359.0,67345.0,1.39792]
[1729521939085,0.074258,67356.0,67355.0,0.44512]
[1729521940500,0.088258,67356.0,67355.0,0.44512]
[1729521940788,0.074274,67342.0,67332.0,0.3608]
[1729521940996,0.074283,67333.0,67332.0,0.9608]
[1729521941306,0.074283,67333.0,67332.0,0.3608]
[1729521941501,0.074283,67333.0,67332.0,0.80592]
[1729521943004,0.09221345,67333.0,67332.0,0.80592]
[1729521943303,0.002,67333.0,67332.0,1.40592]
[1729521943512,0.074271,67344.0,67337.0,0.074278]
[1729521943805,0.17028,67354.0,67346.0,0.519389]
[1729521943806,0.244541,67354.0,67346.0,0.519389]
[1729521944104,0.074262,67353.0,67346.0,0.519389]
[1729521944400,0.01866271,67351.0,67346.0,1.04512]
[1729521945195,0.17028,67362.0,67346.0,1.04512]
[1729521945196,0.074259,67356.0,67346.0,1.119389]
[1729521945393,0.17028,67362.0,67346.0,1.119389]
[1729521945596,0.074262,67353.0,67346.0,1.119389]
[1729521945798,0.074263,67352.0,67346.0,1.119389]
[1729521946004,0.074265,67350.0,67346.0,1.04512]
[1729521946303,0.01322836,67347.0,67346.0,1.04612]
[1729521946507,0.08749636,67347.0,67346.0,0.44612]
[1729521946703,0.07649636,67347.0,67346.0,0.44612]
[1729521946904,0.08249636,67347.0,67346.0,0.44612]
[1729521947404,0.08549636,67347.0,67346.0,0.44612]
[1729521947603,0.083268,67347.0,67346.0,0.44612]
[1729521949304,0.083268,67347.0,67346.0,1.04612]
[1729521949503,0.0186517,67352.0,67346.0,1.40592]
[1729521949807,0.011,67347.0,67346.0,0.9618]
[1729521950308,0.085268,67347.0,67346.0,1.40692]
[1729521950813,0.074268,67347.0,67346.0,1.39892]
[1729521951006,0.009,67352.0,67346.0,1.39892]
[1729521951209,0.10191981,67352.0,67351.0,0.44512]
[1729521951414,0.10191981,67352.0,67351.0,1.03712]
[1729521952304,0.01865681,67352.0,67351.0,1.03712]
[1729521952510,0.074249,67364.0,67351.0,1.03712]
[1729521952702,0.53108,67363.0,67358.0,0.44512]
[1729521952902,0.074255,67359.0,67358.0,0.44512]
[1729521953813,0.55929351,67363.0,67352.0,0.4262]
[1729521954005,0.55929351,67363.0,67351.0,0.001]
[1729521954006,0.3608,67355.0,67351.0,0.001]
[1729521954208,0.074268,67347.0,67338.0,0.0687]
[1729521954411,0.074268,67347.0,67346.0,0.44512]
[1729521955800,0.074268,67347.0,67324.0,0.074293]
[1729521955801,0.074278,67338.0,67324.0,0.074293]
[1729521955999,0.074278,67338.0,67295.0,0.08880155]
[1729521956000,0.074278,67338.0,67333.0,0.3608]
[1729521956210,0.074278,67338.0,67337.0,0.44512]
[1729521957213,0.074278,67338.0,67337.0,0.001]
[1729521957214,0.081278,67338.0,67337.0,0.001]
[1729521959523,0.007,67338.0,67318.0,0.0022282]
[1729521959709,0.074294,67323.0,67319.0,0.44512]
[1729521960014,0.20668534,67322.0,67306.0,0.3608]
[1729521960223,0.074304,67314.0,67313.0,0.44512]
[1729521960533,0.074323,67297.0,67296.0,0.3608]
[1729521960731,0.074323,67297.0,67296.0,1.39792]
[1729521961335,0.074333,67288.0,67283.0,0.3608]
[1729521961535,0.17032,67287.0,67283.0,0.9528]
[1729521961721,0.3608,67294.0,67283.0,0.592]
[1729521961722,0.435137,67284.0,67283.0,0.592]
[1729521962047,0.074343,67279.0,67275.0,0.3608]
[1729521962231,0.3608,67278.0,67275.0,0.592]
[1729521962433,0.3608,67278.0,67264.0,0.3608]
[1729521962741,0.3608,67278.0,67277.0,0.44512]
[1729521963129,0.435144,67278.0,67277.0,0.44512]
[1729521963332,0.435144,67278.0,67264.0,0.3608]
[1729521963333,0.53112,67278.0,67270.0,0.3608]
[1729521963635,0.001,67284.0,67280.0,0.074341]
[1729521963821,0.001,67284.0,67276.0,0.3608]
[1729521963822,0.17036,67298.0,67292.0,0.44288996]
[1729521964020,0.17036,67298.0,67290.0,0.3608]
[1729521964231,0.01838787,67298.0,67283.0,0.3608]
[1729521964428,0.435128,67293.0,67286.0,0.44288996]
[1729521964625,0.3608,67293.0,67283.0,0.591]
[1729521964824,0.17036,67292.0,67290.0,0.3608]
[1729521965025,0.17036,67292.0,67288.0,0.3608]
[1729521965236,0.17036,67292.0,67291.0,0.44288996]
[1729521965628,0.01801152,67299.0,67291.0,1.03388996]
[1729521965937,0.17036,67304.0,67291.0,1.03388996]
[1729521965938,0.17036,67304.0,67298.0,0.3608]
[1729521966135,0.69102,67316.0,67298.0,0.3608]
[1729521966136,0.00192,67316.0,67303.0,0.44288996]
[1729521966324,0.00192,67316.0,67314.0,0.44288996]
[1729521966325,0.074303,67316.0,67314.0,0.44288996]
[1729521966524,0.17036,67318.0,67314.0,0.44288996]
[1729521966932,0.02050527,67315.0,67314.0,0.43488996]
[1729521967136,0.00222939,67315.0,67314.0,0.43488996]
[1729521967624,0.00222939,67315.0,67314.0,1.38668996]
[1729521968037,0.00222939,67315.0,67314.0,1.46099396]
[1729521968243,0.3608,67338.0,67314.0,0.3608]
[1729521968432,0.17016,67341.0,67335.0,0.43488996]
[1729521968630,0.17016,67341.0,67336.0,0.43488996]
[1729521968631,0.074279,67337.0,67336.0,0.43488996]
[1729521969034,0.17016,67341.0,67336.0,0.43488996]
[1729521969240,0.244434,67341.0,67340.0,0.43488996]
[1729521969431,0.074274,67341.0,67340.0,0.43488996]
[1729521969733,0.088274,67341.0,67340.0,0.43488996]
[1729521969934,0.088274,67341.0,67329.0,0.3608]
[1729521970151,0.074277,67339.0,67338.0,0.14488996]
[1729521970631,0.014,67341.0,67329.0,0.3608]